bitfinex-derivatives/quotes_ETHF0:USTF0_20250210
["timestamp","ask_amount","ask_price","bid_price","bid_amount"]
[1739153303227,4.39418552,2583.3,2582.8,3.2078]
[1739153303428,3.2078,2583.0,2582.5,3.2078]
[1739153303930,4.1149186,2582.9,2582.3,3.8559]
[1739153304231,4.1149186,2582.9,2582.1,3.2136063]
[1739153304827,4.1149186,2582.9,2582.1,0.0058063]
[1739153304828,3.8867,2582.8,2582.1,0.0058063]
[1739153305333,4.46011986,2582.7,2582.1,0.0058063]
[1739153306327,8.44219986,2582.7,2582.1,0.0058063]
[1739153306627,7.66791986,2582.7,2582.1,0.0058063]
[1739153308630,3.2078,2582.4,2582.1,0.0058063]
[1739153308833,8.44219986,2582.7,2582.1,0.0058063]
[1739153309026,4.32464716,2582.3,2582.1,0.0058063]
[1739153309228,4.32464716,2582.6,2582.1,0.0058063]
[1739153309528,3.2078,2582.4,2582.1,0.0058063]
[1739153309722,3.2078,2582.7,2582.1,0.0058063]
[1739153309921,4.32464716,2582.3,2582.1,0.0058063]
[1739153310130,4.14384035,2582.5,2582.1,0.0058063]
[1739153310327,3.2078,2582.7,2582.1,0.0058063]
[1739153310530,3.2078,2582.3,2582.1,0.0058063]
[1739153310727,4.14384035,2582.4,2582.1,0.0058063]
[1739153310927,4.14384035,2582.2,2582.1,0.0058063]
[1739153311128,4.8103731,2582.5,2582.1,0.0058063]
[1739153311328,4.0360331,2582.4,2582.1,0.0058063]
[1739153311523,3.2136063,2582.6,2582.1,0.00150747]
[1739153311930,4.0360331,2582.4,2582.1,0.00150747]
[1739153312130,4.8103531,2582.5,2582.1,0.00150747]
[1739153312428,3.2136063,2582.6,2582.1,0.00150747]
[1739153312625,4.32497417,2582.4,2582.1,0.00150747]
[1739153312823,5.09931417,2582.5,2582.1,0.00150747]
[1739153313130,3.9879063,2582.6,2582.1,0.00150747]
[1739153313330,4.35638358,2582.4,2582.1,0.00150747]
[1739153313635,4.35638358,2582.5,2582.1,0.00150747]
[1739153313828,3.9879063,2582.6,2582.1,0.00150747]
[1739153314024,4.41142682,2582.5,2582.1,0.00150747]
[1739153314429,0.77435,2582.4,2582.1,0.00150747]
[1739153314633,5.18575682,2582.5,2582.1,0.00150747]
[1739153314933,4.41142682,2582.3,2582.1,0.00150747]
[1739153315136,4.38067066,2582.4,2582.1,0.00150747]
[1739153315336,3.2136063,2582.6,2582.1,0.00150747]
[1739153315729,4.38067066,2582.4,2582.1,0.00150747]
[1739153315931,4.38067066,2582.5,2582.1,0.00150747]
[1739153316128,0.0058063,2582.6,2582.1,0.00150747]
[1739153316332,4.07655881,2582.5,2582.1,0.00150747]
[1739153316540,4.07655881,2582.5,2582.1,3.20930747]
[1739153316931,0.0058063,2582.6,2582.2,2.88239518]
[1739153317236,0.0058063,2582.6,2582.5,2.88239518]
[1739153317628,0.0058063,2582.6,2582.2,2.88239518]
[1739153317833,4.39476359,2582.6,2582.2,2.88239518]
[1739153318027,4.39476359,2582.6,2582.1,3.20930747]
[1739153318028,5.16906359,2582.6,2582.1,3.20930747]
[1739153318237,4.39476359,2582.6,2582.1,0.00150747]
[1739153320242,7.60256359,2582.6,2582.1,0.00150747]
[1739153320435,4.39476359,2582.6,2582.1,0.00150747]
[1739153320936,4.39476359,2582.6,2581.0,4.68367]
[1739153320937,3.2078,2582.4,2581.6,10.79879518]
[1739153321330,4.03874189,2582.3,2581.6,10.79879518]
[1739153322139,4.03874189,2582.3,2581.7,0.00387088]
[1739153325837,3.2078,2582.1,2581.7,0.00387088]
[1739153326341,4.09096921,2582.0,2581.7,0.00387088]
[1739153327942,3.2078,2581.8,2581.7,0.00387088]
[1739153328140,3.2078,2581.8,2581.2,3.2078]
[1739153328445,7.43734999,2581.8,2581.2,3.2078]
[1739153328748,8.21189999,2581.8,2581.2,3.2078]
[1739153329043,7.43734999,2581.8,2581.2,3.2078]
[1739153329736,8.21188999,2581.8,2581.2,3.2078]
[1739153330140,0.77456,2581.7,2581.2,3.2078]
[1739153330341,3.2078,2581.5,2580.7,2.88239518]
[1739153330741,4.16126233,2581.4,2580.7,2.88239518]
[1739153331345,0.0058063,2581.3,2580.7,2.88239518]
[1739153331552,0.0058063,2581.3,2580.4,6.51489518]
[1739153331553,3.2078,2581.2,2580.4,6.51489518]
[1739153331841,3.2078,2580.6,2579.8,6.74089518]
[1739153332049,3.2078,2580.3,2579.8,6.74089518]
[1739153332248,4.16021741,2580.5,2579.8,6.74089518]
[1739153332441,4.16021741,2580.2,2579.8,6.74089518]
[1739153332838,3.2078,2580.4,2579.8,3.8585]
[1739153333142,4.22636768,2580.3,2579.7,3.2078]
[1739153333348,4.22636768,2580.3,2579.5,2.88239518]
[1739153333949,4.22636768,2580.3,2579.8,2.88239518]
[1739153334642,4.15452343,2580.4,2579.5,2.88239518]
[1739153334953,3.2078,2580.2,2579.4,3.2078]
[1739153335343,4.15603131,2580.1,2579.4,3.2078]
[1739153335849,0.0058063,2580.0,2579.4,3.2078]
[1739153336252,4.35850715,2579.9,2579.4,3.2078]
[1739153337050,7.56630715,2579.9,2579.2,2.88239518]
[1739153338851,4.35850715,2579.9,2579.4,3.2078]
[1739153340145,3.2078,2579.6,2579.2,2.88239518]
[1739153340350,3.2078,2579.6,2579.0,3.8139]
[1739153340649,4.30938083,2579.5,2579.0,3.8139]
[1739153341045,3.9553,2579.8,2579.0,3.8139]
[1739153341447,4.34265823,2579.6,2579.0,3.8139]
[1739153341753,3.2078,2579.7,2579.0,3.8139]
[1739153341950,3.2078,2579.7,2578.9,6.09019518]
[1739153341951,3.98298,2579.7,2578.9,6.09019518]
[1739153342151,4.3049118,2579.5,2578.9,2.88239518]
[1739153342346,3.2078,2579.4,2578.6,2.88239518]
[1739153342845,4.3049118,2579.3,2578.6,2.88239518]
[1739153343643,4.3049118,2579.3,2578.8,3.2078]
[1739153344952,4.3049118,2579.3,2578.5,4.041]
[1739153345152,3.2078,2579.1,2578.5,4.041]
[1739153345352,3.2078,2579.1,2578.3,2.88239518]
[1739153345649,4.45511063,2579.0,2578.1,3.2078]
[1739153346154,3.2078,2578.8,2578.1,3.2078]
[1739153346542,4.04548754,2578.7,2578.0,3.9053]
[1739153347053,8.00298754,2578.7,2577.7,6.09019518]
[1739153348945,3.2078,2578.5,2577.7,2.88239518]
[1739153349142,2.255,2578.4,2577.6,3.6733]
[1739153349356,3.2078,2578.0,2577.4,3.2078]
[1739153349650,3.2078,2578.3,2577.4,3.2078]
[1739153349858,4.19683376,2577.9,2577.4,6.09019518]
[1739153350148,4.24329741,2578.2,2577.4,6.09019518]
[1739153350351,3.2078,2578.0,2577.4,3.2078]
[1739153350655,4.24329741,2577.9,2577.4,3.2078]
[1739153350955,4.24329741,2577.9,2577.1,2.88239518]
[1739153351356,4.24329741,2577.9,2577.0,3.2078]
[1739153351551,3.2078,2577.7,2577.0,3.2078]
[1739153351748,3.2078,2577.7,2576.8,6.67909518]
[1739153351946,3.2078,2577.5,2576.8,2.88239518]
[1739153352145,3.2078,2577.5,2576.7,3.694]
[1739153352349,4.25507102,2577.4,2576.7,3.694]
[1739153352550,4.26088869,2577.4,2576.7,3.694]
[1739153352747,4.26088869,2577.4,2576.8,2.88239518]
[1739153352950,4.26088869,2577.4,2576.9,3.2078]
[1739153353358,4.26088869,2577.4,2577.1,2.88239518]
[1739153354255,0.00581767,2577.4,2577.2,3.2078]
[1739153354455,5.4638,2578.4,2577.2,7.0531]
[1739153354754,4.10118432,2578.0,2577.5,6.09019518]
[1739153354952,4.10118432,2578.0,2577.5,3.2078]
[1739153355157,3.2078,2578.1,2577.2,6.72769518]
[1739153355354,4.1088732,2577.9,2577.2,6.72769518]
[1739153355754,0.00581767,2577.9,2577.4,0.00581767]
[1739153356154,4.1088732,2577.8,2577.4,0.00581767]
[1739153356554,7.3166732,2577.8,2577.4,0.00581767]
[1739153356761,0.00581767,2577.9,2577.4,0.00581767]
[1739153357061,4.46889529,2577.7,2577.4,0.00581767]
[1739153357252,4.47087197,2577.8,2577.4,0.00581767]
[1739153357450,0.00581767,2577.9,2577.4,0.00581767]
[1739153357653,4.47087197,2577.8,2577.4,0.00581767]
[1739153357857,3.2078,2577.5,2577.4,0.00581767]
[1739153358357,7.30163249,2577.5,2577.4,0.00581767]
[1739153359664,7.30163249,2577.5,2577.1,3.2078]
[1739153360662,3.9721,2577.4,2577.1,3.2078]
[1739153361063,4.31063322,2577.3,2577.1,3.2078]
[1739153362658,3.2078,2577.2,2576.3,3.9333]
[1739153362857,3.2078,2576.8,2576.2,6.9392]
[1739153363263,4.19222616,2576.7,2576.2,3.7314]
[1739153363462,4.19222616,2576.7,2575.9,3.2078]
[1739153363663,12.02112616,2576.7,2575.9,3.2078]
[1739153363862,2.255,2576.6,2575.9,3.2078]
[1739153364365,4.19785809,2576.5,2575.9,3.2078]
[1739153366165,4.19785809,2576.5,2576.0,2.88239518]
[1739153366770,4.19785809,2576.5,2576.2,3.2078]
[1739153366972,0.00581767,2576.6,2576.4,2.88239518]
[1739153367168,0.00581767,2576.6,2576.5,3.2078]
[1739153367467,11.45351,2577.9,2576.5,7.2321]
[1739153367666,2.255,2577.7,2576.9,3.2078]
[1739153367870,4.04001886,2577.7,2577.0,2.88239518]
[1739153368059,2.255,2578.0,2577.2,3.2078]
[1739153368471,4.36129622,2577.8,2577.3,4.0243]
[1739153368673,4.36711389,2577.9,2577.3,4.03011767]
[1739153368866,0.00581767,2577.9,2577.3,4.03011767]
[1739153369065,4.36129622,2577.8,2577.3,4.03011767]
[1739153369971,0.00581767,2577.9,2577.5,3.2078]
[1739153370669,4.31898612,2577.8,2577.6,0.00415427]
[1739153372563,3.2078,2577.7,2577.6,0.00415427]
[1739153372961,7.53521808,2577.7,2577.6,0.00415427]
[1739153373467,14.31097808,2577.7,2577.3,0.00581767]
[1739153373773,3.2078,2577.4,2577.3,0.00581767]
[1739153374274,7.57665173,2577.4,2577.3,0.00581767]
[1739153375076,7.57665173,2577.4,2576.6,3.2078]
[1739153375269,2.254,2577.3,2576.6,3.2078]
[1739153375468,3.02989,2577.3,2576.6,3.2078]
[1739153375668,4.49862564,2577.2,2576.6,3.2078]
[1739153375972,3.2078,2577.1,2576.2,3.2078]
[1739153376475,4.13394124,2577.0,2576.2,3.2078]
[1739153376672,3.2078,2576.2,2574.3,3.2078]
[1739153376869,3.2078,2575.7,2574.6,7.2571]
[1739153377072,3.2078,2575.7,2574.9,3.2078]
[1739153377373,0.00581767,2575.4,2574.9,3.2078]
[1739153378169,0.00581767,2575.4,2575.0,2.88239518]
[1739153378573,0.00581767,2575.4,2575.1,4.0117]
[1739153378876,4.26184352,2575.3,2574.6,4.0493]
[1739153379175,3.2078,2575.1,2574.6,4.0493]
[1739153379478,3.2078,2574.8,2574.6,4.0493]
[1739153379772,3.2078,2574.8,2574.2,4.0117]
[1739153379978,4.43911828,2574.7,2574.2,4.0117]
[1739153380177,3.2078,2574.5,2574.1,3.8067]
[1739153380675,4.114485,2574.4,2574.1,3.8067]
[1739153380871,3.2078,2574.5,2574.1,3.8067]
[1739153382174,2.254,2575.1,2574.3,3.2078]
[1739153382370,2.254,2575.1,2574.4,4.1729]
[1739153382576,4.21980717,2575.0,2574.4,4.1729]
[1739153383477,3.2078,2575.5,2574.6,3.2078]
[1739153383778,3.2078,2575.5,2574.9,3.2078]
[1739153383976,3.2078,2575.5,2575.0,3.8858]
[1739153386675,3.2078,2575.8,2575.2,3.2078]
[1739153387078,5.4618,2576.1,2575.2,9.2078]
[1739153387473,5.4618,2576.1,2575.3,3.8195]
[1739153387684,2.254,2576.1,2575.3,3.8195]
[1739153388480,0.00581767,2576.0,2575.4,0.00581767]
[1739153389387,3.2078,2575.8,2575.4,0.00581767]
[1739153389788,4.06561286,2575.7,2575.4,0.00581767]
[1739153390585,6.09019518,2575.5,2574.2,3.2078]
[1739153390778,3.2078,2575.1,2574.2,3.2078]
[1739153391180,3.2078,2574.8,2574.2,3.2078]
[1739153391383,3.2078,2574.4,2574.0,4.0152]
[1739153391681,7.40843575,2574.7,2574.0,4.0152]
[1739153391889,3.2078,2574.4,2574.0,4.0152]
[1739153392791,0.00581767,2574.5,2574.0,4.0152]
[1739153392981,3.2078,2574.4,2574.0,4.0152]
[1739153393190,7.32357816,2574.4,2574.0,4.0152]
[1739153394678,0.00581767,2574.5,2574.0,4.0152]
[1739153395992,0.00581767,2574.5,2574.0,7.223]
[1739153397587,3.98465,2574.1,2572.6,3.2078]
[1739153397791,3.2078,2573.8,2572.7,4.1267]
[1739153398094,3.2078,2573.8,2572.9,2.88239518]
[1739153398291,3.2078,2573.8,2573.2,6.09019518]
[1739153398487,4.29711196,2574.2,2573.5,3.2078]
[1739153398488,3.2078,2574.2,2573.5,3.2078]
[1739153398693,3.21361767,2574.5,2573.6,4.1267]
[1739153399092,3.21361767,2574.5,2573.8,3.2078]
[1739153399597,0.00581767,2574.5,2573.8,6.09019518]
[1739153399991,0.00581767,2574.5,2573.9,2.253]
[1739153400192,3.2078,2574.8,2574.1,2.88239518]
[1739153400394,3.2078,2575.1,2574.1,6.09019518]
[1739153400696,3.2078,2575.1,2574.2,4.0737]
[1739153400888,4.21076809,2575.0,2574.2,4.0737]
[1739153401092,3.2078,2575.1,2574.2,4.0737]
[1739153401388,3.2078,2575.1,2574.4,0.00582898]
[1739153401589,0.00582898,2574.9,2574.4,0.00582898]
[1739153401790,3.2078,2574.7,2574.4,0.00582898]
[1739153402793,4.04239254,2574.6,2574.4,0.00582898]
[1739153404090,3.2078,2574.7,2574.4,0.00582898]
[1739153408389,0.00582898,2574.9,2574.5,3.2078]
[1739153408585,0.00582898,2574.9,2574.6,4.1449]
[1739153410994,0.00582898,2574.9,2574.7,2.88239518]
[1739153411502,0.00582898,2574.9,2574.7,8.88239518]
[1739153411994,3.2078,2575.6,2574.8,3.2078]
[1739153412195,7.1375,2576.5,2575.5,6.09019518]
[1739153412390,3.2078,2576.8,2575.8,6.09019518]
[1739153412595,3.2078,2577.1,2575.8,46.89019518]
[1739153412791,4.25447381,2576.5,2576.1,2.88239518]
[1739153413093,3.2078,2576.8,2575.8,43.68239518]
[1739153413295,0.00582898,2576.6,2576.0,0.00582898]
[1739153413803,0.00582898,2576.6,2576.1,6.09019518]
[1739153415395,0.00582898,2576.6,2576.2,3.8505]
[1739153416099,3.2078,2576.5,2576.0,0.00582898]
[1739153416303,0.00582898,2576.6,2576.1,6.09019518]
[1739153416594,0.00582898,2576.6,2576.0,0.00582898]
[1739153417910,3.2078,2576.2,2576.0,0.00582898]
[1739153418301,8.0446906,2576.1,2575.2,18.489]
[1739153418602,8.0446906,2576.1,2575.2,24.57919518]
[1739153418802,3.2078,2575.8,2574.9,9.20509518]
[1739153419106,3.2078,2575.5,2574.9,12.41289518]
[1739153419297,3.2078,2575.5,2574.9,9.5305]
[1739153419703,3.2078,2575.8,2574.9,12.41872416]
[1739153419997,3.2078,2575.8,2575.2,3.2078]
[1739153420396,3.8065,2576.1,2575.2,3.2078]
[1739153420597,3.8065,2576.1,2575.2,6.09019518]
[1739153420998,3.8065,2576.1,2575.3,3.8715]
[1739153421709,3.2078,2575.8,2575.3,3.8715]
[1739153421905,7.0143,2576.1,2575.2,3.2078]
[1739153422101,3.2078,2575.8,2575.2,3.2078]
[1739153422594,8.47441517,2576.0,2574.9,4.07852898]
[1739153422795,3.2078,2575.6,2574.9,4.07852898]
[1739153423303,3.2078,2575.6,2574.9,6.96092416]
[1739153423504,3.2078,2575.6,2574.9,10.16872416]
[1739153423704,7.0143,2576.1,2575.2,6.09019518]
[1739153425001,7.0143,2576.1,2575.3,40.8]
[1739153426008,7.0143,2576.1,2575.2,6.09019518]
[1739153426402,7.0143,2576.1,2575.3,40.8]
[1739153426702,3.2078,2576.5,2575.8,2.88239518]
[1739153426906,0.00582898,2576.6,2575.8,2.88239518]
[1739153427107,0.00582898,2576.6,2575.9,4.1745]
[1739153428406,3.2078,2576.5,2575.9,4.1745]
[1739153430013,0.00582898,2576.6,2575.9,4.1745]
[1739153430507,3.2078,2576.5,2575.5,2.88239518]
[1739153430707,3.2078,2576.2,2575.4,4.0676]
[1739153430904,3.9556,2576.1,2575.4,4.0676]
[1739153431106,3.2078,2575.9,2575.3,3.2078]
[1739153432617,4.22077648,2575.8,2575.3,3.2078]
[1739153433720,3.2078,2575.9,2575.3,3.2078]
[1739153435128,3.2078,2575.9,2575.1,3.2078]
[1739153435323,3.2078,2575.6,2574.9,0.00582898]
[1739153435631,3.2078,2575.0,2574.9,0.00582898]
[1739153437635,3.2078,2575.0,2574.9,0.00157591]
[1739153441535,3.2078,2575.0,2574.9,0.00042608]
[1739153441840,3.2078,2575.0,2574.0,26.4181]
[1739153442036,3.2078,2574.6,2574.0,3.8446]
[1739153446631,3.2078,2574.9,2574.3,2.88239518]
[1739153447437,3.2078,2574.9,2574.1,3.2078]
[1739153447636,3.2078,2574.6,2574.0,6.72699518]
[1739153447939,3.2078,2574.3,2573.8,4.0294]
[1739153448237,0.77673,2574.5,2573.6,3.2078]
[1739153448238,4.43744839,2574.5,2573.6,3.2078]
[1739153448539,3.2078,2574.3,2573.6,3.2078]
[1739153449435,3.2078,2574.3,2573.0,6.91059518]
[1739153449436,3.2078,2573.7,2573.0,6.91059518]
[1739153449628,3.2078,2573.2,2573.0,4.0282]
[1739153449829,3.2078,2573.5,2573.0,4.0282]
[1739153450042,0.00582898,2573.4,2573.0,4.0282]
[1739153450237,0.00582898,2573.4,2572.9,4.1623]
[1739153450738,3.2078,2573.2,2572.6,3.2078]
[1739153450937,3.2078,2573.2,2572.5,4.0504]
[1739153451535,3.2078,2572.9,2572.5,4.0504]
[1739153451739,3.2078,2572.9,2572.4,4.0212]
[1739153452142,3.2078,2573.2,2572.4,6.90359518]
[1739153452535,3.2078,2572.9,2572.4,4.0212]
[1739153453743,3.2078,2572.6,2571.8,2.88239518]
[1739153456143,3.2078,2572.6,2571.9,40.8]
[1739153456540,3.2078,2572.3,2571.7,7.1942]
[1739153457442,3.2078,2572.3,2571.7,3.9864]
[1739153458036,3.2078,2572.0,2571.3,3.2078]
[1739153458244,8.45975803,2572.2,2571.3,3.2078]
[1739153458441,0.00582898,2571.9,2571.3,3.2078]
[1739153458843,0.00582898,2571.9,2571.2,2.88239518]
[1739153459348,3.2078,2571.8,2571.1,4.1794]
[1739153459640,7.30120596,2571.8,2571.1,4.1794]
[1739153460147,3.2078,2571.5,2571.1,4.1794]
[1739153460446,3.2078,2571.5,2570.6,7.06179518]
[1739153460745,3.2078,2571.5,2570.9,6.09019518]
[1739153461141,3.21362898,2571.9,2571.2,2.88239518]
[1739153462339,3.2078,2571.6,2570.9,2.88239518]
[1739153463146,3.21362898,2571.9,2570.9,2.88239518]
[1739153463445,3.2078,2571.6,2570.9,2.88239518]
[1739153463745,3.2078,2571.4,2570.6,7.06179518]
[1739153464744,3.2078,2571.4,2570.9,2.88239518]
[1739153464945,2.247,2571.7,2570.9,2.88239518]
[1739153465139,3.21362898,2571.9,2571.0,3.2078]
[1739153465348,3.21362898,2571.9,2571.1,4.0355]
[1739153465552,3.2078,2571.6,2571.1,4.0355]
[1739153465852,3.2078,2571.6,2571.1,44.8355]
[1739153466048,3.2078,2571.6,2570.9,2.88239518]
[1739153466254,3.2078,2571.6,2570.6,7.06179518]
[1739153466552,3.2078,2571.3,2570.6,7.06179518]
[1739153466953,3.2078,2571.3,2570.9,2.88239518]
[1739153467248,3.21362898,2571.9,2571.0,3.2078]
[1739153467456,3.21362898,2571.9,2571.2,2.88239518]
[1739153468051,3.21362898,2571.9,2571.1,3.8418]
[1739153468052,3.2078,2571.3,2571.1,3.8418]
[1739153468549,3.2078,2571.3,2570.6,4.1794]
[1739153468749,3.2078,2571.0,2570.6,4.1794]
[1739153469754,3.2078,2571.5,2570.9,6.09019518]
[1739153469957,3.21362898,2571.9,2571.3,2.88239518]
[1739153470157,0.00582898,2571.9,2571.3,6.09019518]
[1739153470449,0.00582898,2571.9,2571.4,8.1071]
[1739153470653,7.3018,2572.6,2571.7,3.2078]
[1739153471860,0.77705,2573.5,2571.5,46.8585]
[1739153471861,3.2078,2573.2,2572.3,3.2078]
[1739153472155,3.2078,2573.8,2573.0,3.2078]
[1739153472350,3.2078,2573.8,2573.1,3.2078]
[1739153472551,2.88239518,2574.5,2573.1,3.2078]
[1739153472552,3.2078,2574.4,2573.7,3.2078]
[1739153473248,3.2078,2574.4,2573.3,43.68239518]
[1739153473249,3.2078,2574.4,2573.6,3.2078]
[1739153473451,0.00582898,2574.3,2573.8,0.00582898]
[1739153474055,3.2078,2574.1,2573.8,0.00582898]
[1739153474656,0.00582898,2574.3,2573.9,3.2078]
[1739153475458,0.00582898,2574.3,2574.2,3.2078]
[1739153475652,3.2078,2575.2,2574.2,3.2078]
[1739153475849,2.245,2575.6,2573.9,4.0126]
[1739153475850,3.2078,2575.6,2574.7,2.88239518]
[1739153476058,3.2078,2575.6,2575.0,3.2078]
[1739153476851,3.2078,2575.2,2574.4,2.88239518]
[1739153477254,3.2078,2575.5,2574.7,6.09019518]
[1739153477566,3.2078,2575.5,2575.0,6.09019518]
[1739153477757,3.2078,2575.5,2575.0,3.2078]
[1739153478853,3.2078,2575.5,2574.6,3.2078]
[1739153479358,0.00582898,2575.6,2575.3,3.2078]
[1739153479559,0.00582898,2575.6,2575.0,3.2078]
[1739153479758,0.00582898,2575.6,2575.4,3.2078]
[1739153480162,7.3197,2576.7,2575.4,9.2078]
[1739153480356,3.2078,2576.4,2575.7,3.2078]
[1739153480563,3.2078,2576.4,2575.4,3.2078]
[1739153481261,7.3197,2576.7,2575.4,3.2078]
[1739153481462,0.00582898,2576.2,2575.7,3.2078]
[1739153481768,0.00582898,2576.2,2575.8,2.243]
[1739153482863,0.00582898,2576.2,2575.3,5.4498]
[1739153483061,3.2078,2576.1,2575.3,3.2078]
[1739153483469,0.00582898,2576.2,2575.3,3.2078]
[1739153483864,0.00582898,2576.2,2575.4,3.2078]
[1739153484064,3.2078,2575.8,2575.1,7.1069]
[1739153484464,3.2078,2576.1,2575.1,7.1069]
[1739153484867,3.2078,2576.1,2575.4,3.2078]
[1739153485171,3.2078,2576.1,2575.1,3.8991]
[1739153485672,3.2078,2575.5,2575.1,3.8991]
[1739153486074,3.2078,2575.8,2575.1,3.8991]
[1739153486471,0.00582898,2576.2,2575.3,3.2078]
[1739153487170,3.21362898,2576.2,2575.3,3.2078]
[1739153487371,3.21362898,2576.2,2575.2,2.242]
[1739153487771,3.21362898,2576.2,2575.1,3.8991]
[1739153487772,3.2078,2575.8,2575.1,3.8991]
[1739153488070,4.022,2576.1,2573.3,3.2078]
[1739153488071,0.77655,2575.1,2573.3,3.2078]
[1739153488271,3.2078,2573.9,2573.3,3.2078]
[1739153488478,3.2078,2573.9,2572.7,7.3723]
[1739153488872,3.2078,2573.8,2572.7,12.44969593]
[1739153489180,3.2078,2574.1,2573.0,3.2078]
[1739153489476,0.00582898,2573.5,2573.3,3.2078]
[1739153489981,0.00582898,2573.5,2573.4,0.77706]
[1739153490170,3.2078,2574.5,2573.5,0.77701]
[1739153490375,3.2078,2574.5,2573.6,7.3723]
[1739153490570,3.2078,2574.5,2573.9,3.2078]
[1739153490972,3.2078,2574.9,2573.9,3.9847]
[1739153491174,3.2078,2574.9,2574.2,3.2078]
[1739153491480,0.00582898,2574.7,2574.5,3.2078]
[1739153491677,0.00582898,2574.7,2574.4,3.2078]
[1739153492575,0.00582898,2574.7,2574.3,0.00582898]
[1739153492974,0.00582898,2574.7,2574.3,3.21362898]
[1739153493184,0.00582898,2574.7,2574.4,4.008]
[1739153494382,3.21362898,2574.7,2574.3,3.21362898]
[1739153494674,3.21362898,2574.7,2574.3,0.00582898]
[1739153496074,3.2078,2574.4,2574.3,0.00582898]
[1739153496373,7.60593749,2574.4,2573.4,3.2078]
[1739153496574,3.2078,2573.8,2573.4,3.2078]
[1739153497179,3.22363572,2574.4,2573.0,3.9492]
[1739153497180,3.2078,2573.5,2573.0,3.9492]
[1739153497580,3.2078,2573.5,2573.3,0.00582898]
[1739153498884,4.2254,2573.4,2572.7,3.2078]
[1739153499087,3.2078,2573.1,2572.7,3.2078]
[1739153499379,12.3275957,2573.4,2572.3,18.491]
[1739153499380,3.2078,2572.8,2572.3,18.491]
[1739153499877,3.2078,2572.8,2572.0,3.9815]
[1739153500478,3.2078,2572.5,2572.3,0.00582898]
[1739153503381,0.00582898,2572.8,2572.3,0.00582898]
[1739153504075,0.00582898,2572.8,2572.3,3.97542898]
[1739153504587,3.21362898,2572.8,2572.3,3.97542898]
[1739153505676,3.21362898,2572.8,2572.3,0.00582898]
[1739153505885,3.2078,2572.5,2572.3,0.00582898]
[1739153506277,3.21362898,2572.8,2572.3,0.00582898]
[1739153507777,3.2078,2572.5,2572.3,0.00582898]
[1739153509185,3.2078,2572.6,2572.3,0.00582898]
[1739153509687,0.00582898,2572.8,2572.3,0.00582898]
[1739153515585,3.2078,2572.6,2572.3,0.00582898]
[1739153515785,4.0859,2572.5,2572.3,0.00582898]
[1739153515985,8.25905774,2572.5,2572.3,0.00582898]
[1739153516196,12.43615774,2572.5,2572.3,0.00582898]
[1739153518589,3.2078,2572.6,2572.3,0.00582898]
[1739153518789,0.00582898,2572.8,2572.3,0.00582898]
[1739153519687,0.00582898,2572.8,2572.3,6.11778647]
[1739153519889,0.00582898,2572.8,2572.4,4.1609]
[1739153520094,0.00582898,2572.8,2572.6,3.2078]
[1739153520699,0.00582898,2572.8,2572.4,4.1609]
[1739153521597,0.00582898,2572.8,2572.6,2.90415749]
[1739153521800,3.2078,2573.6,2572.7,3.2078]
[1739153522001,3.2078,2573.6,2572.7,7.2599]
[1739153522191,3.2078,2573.3,2572.7,7.2599]
[1739153522397,3.2078,2573.3,2572.7,3.2078]
[1739153522595,6.11195749,2572.8,2570.6,2.90415749]
[1739153522796,3.2078,2571.4,2570.6,2.90415749]
[1739153522991,3.2078,2571.4,2570.5,3.2078]
[1739153522992,3.2078,2571.4,2570.9,2.90415749]
[1739153523899,3.21362898,2571.4,2570.9,2.90998647]
[1739153525099,3.21362898,2571.4,2571.0,4.2383]
[1739153527700,3.2078,2571.1,2571.0,4.2383]
[1739153527905,3.2078,2571.1,2570.9,0.00582898]
[1739153528204,3.20518392,2571.1,2570.9,0.00582898]
[1739153532607,3.21362898,2571.4,2570.9,0.00582898]
[1739153532807,3.21362898,2571.4,2570.9,3.21362898]
[1739153533010,3.21362898,2571.4,2570.9,0.00582898]
[1739153534312,3.21362898,2571.4,2570.9,3.21362898]
[1739153534506,3.21362898,2571.4,2570.9,0.00582898]
[1739153535111,3.21362898,2571.4,2570.9,3.21362898]
[1739153535508,3.21362898,2571.4,2570.9,0.00582898]
[1739153535709,3.21362898,2571.4,2570.9,3.21362898]
[1739153536803,3.2078,2572.3,2571.2,3.2078]
[1739153537013,3.2078,2572.3,2571.3,6.247]
[1739153537202,3.2078,2572.3,2571.4,3.23442021]
[1739153537710,3.2078,2571.7,2570.9,0.00582898]
[1739153537915,3.2078,2571.4,2570.9,0.00582898]
[1739153538121,0.00582898,2571.6,2571.0,3.2078]
[1739153538315,0.00582898,2571.6,2571.0,10.61542021]
[1739153538612,0.00582898,2571.6,2571.1,2.241]
[1739153539015,0.00582898,2571.6,2571.3,3.2078]
[1739153539217,3.2078,2572.3,2571.5,0.77763]
[1739153539514,3.2078,2572.6,2571.6,3.2078]
[1739153540108,3.2078,2572.6,2571.7,3.8661]
[1739153540412,3.2078,2572.3,2571.7,3.8661]
[1739153540717,0.00582898,2572.4,2571.7,3.8661]
[1739153541213,0.00582898,2572.4,2571.9,3.2078]
[1739153542314,3.2078,2573.0,2572.5,0.77731]
[1739153542516,3.2078,2573.0,2572.6,3.8661]
[1739153543409,3.2078,2573.0,2572.5,2.24582898]
[1739153544119,3.2078,2573.0,2572.5,0.00582898]
[1739153545221,0.00582898,2573.1,2572.7,3.2078]
[1739153545721,0.00582898,2573.1,2572.9,2.90203271]
[1739153546317,0.00582898,2573.1,2572.7,3.9421]
[1739153546611,0.00582898,2573.1,2572.6,2.90203271]
[1739153546818,0.00582898,2573.1,2572.5,6.34302898]
[1739153547914,3.2078,2573.0,2572.5,6.34302898]
[1739153548119,3.2078,2572.7,2572.5,2.24582898]
[1739153548320,3.2078,2572.7,2572.5,0.00582898]
[1739153554827,3.2078,2572.7,2572.5,0.00149698]
[1739153555419,8.71771416,2572.6,2571.7,18.511]
[1739153555729,3.2078,2571.8,2570.8,2.90203271]
[1739153555918,3.2078,2571.5,2570.8,2.90203271]
[1739153556320,3.2078,2571.5,2570.9,40.8]
[1739153556523,0.00582898,2571.4,2570.9,40.80582898]
[1739153556925,0.00582898,2571.4,2571.1,2.90203271]
[1739153558730,0.00582898,2571.4,2570.9,40.80582898]